bitfinex-derivatives/quotes_BNBF0:USTF0_20251225
["timestamp","ask_amount","ask_price","bid_price","bid_amount"]
[1766661016226,1.19532754,837.46,836.54,1.19183808]
[1766661016431,1.19532754,837.45,836.54,1.19183808]
[1766661016726,1.19532754,837.44,836.54,1.19183808]
[1766661016931,1.19532754,837.43,836.54,1.19183808]
[1766661017127,1.19532754,837.42,836.55,1.19183808]
[1766661017428,1.19532754,837.41,836.55,1.19183808]
[1766661017630,1.19532754,837.4,836.55,1.19183808]
[1766661017930,1.19532754,837.39,836.55,1.19183808]
[1766661018129,1.19532754,837.38,836.55,1.19183808]
[1766661018328,0.88848105,837.46,836.55,1.19183808]
[1766661018533,1.19532741,837.45,836.55,1.19183808]
[1766661018733,1.19532741,837.44,836.55,1.19183808]
[1766661018933,1.19532741,837.43,836.55,1.19183808]
[1766661019128,1.19532741,837.42,836.55,1.19183808]
[1766661019329,1.19532741,837.41,836.55,1.19183808]
[1766661019633,1.19532741,837.4,836.55,1.19183808]
[1766661019834,1.19532741,837.39,836.55,1.19183808]
[1766661020027,0.88848105,837.46,836.55,1.19183808]
[1766661020028,1.19532741,837.38,836.55,1.19183808]
[1766661020232,0.88848105,837.46,836.55,1.19183808]
[1766661020431,1.19532729,837.45,836.55,1.19183808]
[1766661020634,1.19532729,837.44,836.55,1.19183808]
[1766661020832,1.19532729,837.43,836.55,1.19183808]
[1766661021030,1.19532729,837.42,836.55,1.19183808]
[1766661021233,1.19532729,837.41,836.55,1.19183808]
[1766661021430,1.19532729,837.4,836.55,1.19183808]
[1766661021734,1.19532729,837.39,836.55,1.19183808]
[1766661021935,1.19532729,837.38,836.55,1.19183808]
[1766661022135,0.88848105,837.46,836.55,1.19183808]
[1766661022334,1.19532729,837.45,836.55,1.19183808]
[1766661022531,1.19532729,837.44,836.55,1.19183808]
[1766661022731,1.19532729,837.43,836.55,1.19183808]
[1766661022935,1.19532729,837.42,836.55,1.19183808]
[1766661023132,1.19532729,837.41,836.55,1.19183808]
[1766661023335,1.19532729,837.4,836.56,1.19183808]
[1766661023530,1.19532729,837.39,836.56,1.19183808]
[1766661023732,1.19532729,837.38,836.56,1.19183808]
[1766661023930,1.19532729,837.37,836.56,1.19183808]
[1766661024132,0.88848105,837.46,836.56,1.19183808]
[1766661024331,1.19532716,837.45,836.56,1.19183808]
[1766661024535,1.19532716,837.44,836.56,1.19183808]
[1766661024737,1.19532716,837.43,836.56,1.19183808]
[1766661025032,1.19532716,837.42,836.56,1.19183808]
[1766661025236,1.19532716,837.41,836.56,1.19183808]
[1766661025536,1.19532716,837.4,836.56,1.19183808]
[1766661025736,1.19532716,837.39,836.56,1.19183808]
[1766661025936,1.19532716,837.38,836.56,1.19183808]
[1766661026135,1.19532716,837.37,836.56,1.19183808]
[1766661026338,0.88848105,837.45,836.56,1.19183808]
[1766661026536,1.19532703,837.44,836.56,1.19183808]
[1766661026734,1.19532703,837.43,836.56,1.19183808]
[1766661026934,1.19532703,837.42,836.56,1.19183808]
[1766661027137,1.19532703,837.41,836.56,1.19183808]
[1766661027335,1.19532703,837.4,836.56,1.19183808]
[1766661027635,1.19532703,837.39,836.56,1.19183808]
[1766661027939,1.19532703,837.38,836.56,1.19183808]
[1766661028238,1.19532703,837.37,836.57,1.19183808]
[1766661028435,0.88848105,837.46,836.57,1.19183808]
[1766661028734,1.19531546,837.45,836.57,1.19183808]
[1766661028934,1.19531546,837.44,836.57,1.19183808]
[1766661029135,1.19531546,837.43,836.57,1.19183808]
[1766661029336,1.19531546,837.42,836.57,1.19183808]
[1766661029534,1.19531546,837.41,836.57,1.19183808]
[1766661029839,1.19531546,837.4,836.59,1.19183808]
[1766661030139,1.19531546,837.39,836.59,1.19183808]
[1766661030339,0.88848105,837.47,836.59,1.19183808]
[1766661030534,1.19529541,837.46,836.59,1.19183808]
[1766661030836,1.19529541,837.45,836.59,1.19183808]
[1766661031039,1.19529541,837.44,836.59,1.19183808]
[1766661031335,1.19529541,837.43,836.59,1.19183808]
[1766661031639,1.19529541,837.42,836.59,1.19183808]
[1766661031835,1.19529541,837.41,836.59,1.19183808]
[1766661032034,1.19529541,837.4,836.59,1.19183808]
[1766661032238,1.19529541,837.39,836.59,1.19183808]
[1766661032433,0.88848105,837.48,836.59,1.19183808]
[1766661032636,1.19528539,837.47,836.59,1.19183808]
[1766661032833,1.19528539,837.46,836.59,1.19183808]
[1766661033038,1.19528539,837.45,836.59,1.19183808]
[1766661033239,1.19528539,837.44,836.59,1.19183808]
[1766661033440,1.19528539,837.43,836.59,1.19183808]
[1766661033640,1.19528539,837.42,836.59,1.19183808]
[1766661033836,1.19528539,837.41,836.59,1.19183808]
[1766661034037,1.19528539,837.4,836.59,1.19183808]
[1766661034240,1.19528539,837.39,836.59,1.19183808]
[1766661034439,0.88848105,837.48,836.59,1.19183808]
[1766661034735,1.19528481,837.47,836.59,1.19183808]
[1766661034936,1.19528481,837.46,836.59,1.19183808]
[1766661035239,1.19528481,837.45,836.59,1.19183808]
[1766661035436,1.19528481,837.44,836.59,1.19183808]
[1766661035640,1.19528481,837.43,836.59,1.19183808]
[1766661035838,1.19528481,837.42,836.59,1.19183808]
[1766661036041,1.19528481,837.41,836.59,1.19183808]
[1766661036240,1.19528481,837.4,836.59,1.19183808]
[1766661036539,1.19528481,837.39,836.59,1.19183808]
[1766661036739,0.88848105,837.48,836.59,1.19183808]
[1766661036938,1.19528481,837.47,836.59,1.19183808]
[1766661037142,1.19528481,837.46,836.59,1.19183808]
[1766661037339,1.19528481,837.45,836.59,1.19183808]
[1766661037543,1.19528481,837.44,836.59,1.19183808]
[1766661037740,1.19528481,837.43,836.59,1.19183808]
[1766661037940,1.19528481,837.42,836.59,1.19183808]
[1766661038241,1.19528481,837.41,836.59,1.19183808]
[1766661038445,1.19528481,837.4,836.59,1.19183808]
[1766661038644,1.19528481,837.39,836.59,1.19183808]
[1766661038844,0.88848105,837.48,836.59,1.19183808]
[1766661039046,1.19528468,837.47,836.59,1.19183808]
[1766661039241,1.19528468,837.46,836.59,1.19183808]
[1766661039446,1.19528468,837.45,836.59,1.19183808]
[1766661039743,1.19528468,837.44,836.59,1.19183808]
[1766661039943,1.19528468,837.43,836.59,1.19183808]
[1766661040148,1.19528468,837.42,836.59,1.19183808]
[1766661040347,1.19528468,837.41,836.59,1.19183808]
[1766661040547,1.19528468,837.4,836.59,1.19183808]
[1766661040843,1.19528468,837.39,836.59,1.19183808]
[1766661041047,0.88848105,837.48,836.59,1.19183808]
[1766661041246,1.19528532,837.47,836.59,1.19183808]
[1766661041446,1.19528532,837.46,836.59,1.19183808]
[1766661041644,1.19528532,837.45,836.59,1.19183808]
[1766661041846,1.19528532,837.44,836.59,1.19183808]
[1766661042051,1.19528532,837.43,836.59,1.19183808]
[1766661042251,1.19528532,837.42,836.59,1.19183808]
[1766661042451,1.19528532,837.41,836.59,1.19183808]
[1766661042651,1.19528532,837.4,836.59,1.19183808]
[1766661042848,1.19528532,837.39,836.59,1.19183808]
[1766661043052,0.88848105,837.48,836.59,1.19183808]
[1766661043253,1.19528519,837.47,836.59,1.19183808]
[1766661043452,1.19528519,837.46,836.59,1.19183808]
[1766661043752,1.19528519,837.45,836.59,1.19183808]
[1766661043952,1.19528519,837.44,836.59,1.19183808]
[1766661044148,1.19528519,837.43,836.59,1.19183808]
[1766661044348,1.19528519,837.42,836.59,1.19183808]
[1766661044551,1.19528519,837.41,836.59,1.19183808]
[1766661044749,1.19528519,837.4,836.59,1.19183808]
[1766661044948,1.19528519,837.39,836.59,1.19183808]
[1766661045152,0.88848105,837.48,836.59,1.19183808]
[1766661045349,1.19528494,837.47,836.59,1.19183808]
[1766661045550,1.19528494,837.46,836.59,1.19183808]
[1766661045752,1.19528494,837.45,836.59,1.19183808]
[1766661045950,1.19528494,837.44,836.59,1.19183808]
[1766661046253,1.19528494,837.43,836.59,1.19183808]
[1766661046451,1.19528494,837.42,836.59,1.19183808]
[1766661046655,1.19528494,837.41,836.59,1.19183808]
[1766661046855,1.19528494,837.4,836.59,1.19183808]
[1766661047050,1.19528494,837.39,836.59,1.19183808]
[1766661047251,0.88848105,837.48,836.59,1.19183808]
[1766661047452,1.19528494,837.47,836.59,1.19183808]
[1766661047653,1.19528494,837.46,836.59,1.19183808]
[1766661047849,1.19528494,837.45,836.59,1.19183808]
[1766661048053,1.19528494,837.44,836.59,1.19183808]
[1766661048252,1.19528494,837.43,836.59,1.19183808]
[1766661048455,1.19528494,837.42,836.59,1.19183808]
[1766661048656,1.19528494,837.41,836.59,1.19183808]
[1766661048856,1.19528494,837.4,836.59,1.19183808]
[1766661049055,1.19528494,837.39,836.59,1.19183808]
[1766661049253,0.88848105,837.48,836.59,1.19183808]
[1766661049554,1.19528494,837.47,836.59,1.19183808]
[1766661049756,1.19528494,837.46,836.59,1.19183808]
[1766661049953,1.19528494,837.45,836.59,1.19183808]
[1766661050153,1.19528494,837.44,836.59,1.19183808]
[1766661050359,1.19528494,837.43,836.59,1.19183808]
[1766661050657,1.19528494,837.42,836.59,1.19183808]
[1766661050854,1.19528494,837.41,836.59,1.19183808]
[1766661051053,0.88848105,837.48,836.59,1.19183808]
[1766661051054,1.19528494,837.4,836.59,1.19183808]
[1766661051253,1.19528494,837.39,836.59,1.19183808]
[1766661051454,0.88848105,837.48,836.59,1.19183808]
[1766661051658,1.19528481,837.47,836.59,1.19183808]
[1766661051856,1.19528481,837.46,836.59,1.19183808]
[1766661052155,1.19528481,837.45,836.59,1.19183808]
[1766661052355,1.19528481,837.44,836.59,1.19183808]
[1766661052558,1.19528481,837.43,836.59,1.19183808]
[1766661052758,1.19528481,837.42,836.59,1.19183808]
[1766661052959,1.19528481,837.41,836.59,1.19183808]
[1766661053158,1.19528481,837.4,836.59,1.19183808]
[1766661053360,1.19528481,837.39,836.59,1.19183808]
[1766661053556,0.88848105,837.48,836.59,1.19183808]
[1766661053759,1.19528481,837.47,836.59,1.19183808]
[1766661053959,1.19528481,837.46,836.59,1.19183808]
[1766661054156,1.19528481,837.45,836.59,1.19183808]
[1766661054459,1.19528481,837.44,836.59,1.19183808]
[1766661054657,1.19528481,837.43,836.6,1.19183808]
[1766661054862,1.19528481,837.42,836.6,1.19183808]
[1766661055057,1.19528481,837.41,836.6,1.19183808]
[1766661055262,1.19528481,837.4,836.6,1.19183808]
[1766661055464,0.88848105,837.48,836.6,1.19183808]
[1766661055663,1.19527453,837.47,836.6,1.19183808]
[1766661055857,1.19527453,837.46,836.6,1.19183808]
[1766661056061,1.19527453,837.45,836.6,1.19183808]
[1766661056259,1.19527453,837.44,836.6,1.19183808]
[1766661056463,1.19527453,837.43,836.6,1.19183808]
[1766661056661,1.19527453,837.42,836.6,1.19183808]
[1766661056864,1.19527453,837.41,836.6,1.19183808]
[1766661057064,1.19527453,837.4,836.6,1.19183808]
[1766661057364,0.88848105,837.48,836.6,1.19183808]
[1766661057560,1.19527543,837.47,836.6,1.19183808]
[1766661057765,1.19527543,837.46,836.6,1.19183808]
[1766661057962,1.19527543,837.45,836.6,1.19183808]
[1766661058162,1.19527543,837.44,836.6,1.19183808]
[1766661058361,0.88848105,837.48,835.76,0.01306404]
[1766661058362,1.19527543,837.43,836.62,1.19183808]
[1766661058564,1.19527543,837.42,836.62,1.19183808]
[1766661058765,0.88848105,837.5,836.62,1.19183808]
[1766661058964,1.1952475,837.49,836.62,1.19183808]
[1766661059168,1.1952475,837.48,836.62,1.19183808]
[1766661059364,1.1952475,837.47,836.62,1.19183808]
[1766661059668,1.1952475,837.46,836.62,1.19183808]
[1766661059868,1.1952475,837.45,836.62,1.19183808]
[1766661060068,1.1952475,837.44,836.62,1.19183808]
[1766661060268,1.1952475,837.43,836.62,1.19183808]
[1766661060568,1.1952475,837.42,836.62,1.19183808]
[1766661060769,0.88848105,837.5,836.62,1.19183808]
[1766661060968,1.19524827,837.49,836.62,1.19183808]
[1766661061169,1.19524827,837.48,836.62,1.19183808]
[1766661061468,1.19524827,837.47,836.62,1.19183808]
[1766661061668,1.19524827,837.46,836.62,1.19183808]
[1766661061864,1.19524827,837.45,836.62,1.19183808]
[1766661062065,1.19524827,837.44,836.62,1.19183808]
[1766661062366,1.19524827,837.43,836.62,1.19183808]
[1766661062665,1.19524827,837.42,836.62,1.19183808]
[1766661062866,0.88848105,837.5,836.62,1.19183808]
[1766661063071,1.1952484,837.49,836.62,1.19183808]
[1766661063272,1.1952484,837.48,836.62,1.19183808]
[1766661063468,1.1952484,837.47,836.62,1.19183808]
[1766661063671,1.1952484,837.46,836.62,1.19183808]
[1766661063871,1.1952484,837.45,836.62,1.19183808]
[1766661064168,1.1952484,837.44,836.62,1.19183808]
[1766661064368,1.1952484,837.43,836.62,1.19183808]
[1766661064670,1.1952484,837.42,836.62,1.19183808]
[1766661064868,0.88848105,837.51,836.62,1.19183808]
[1766661065068,1.19524724,837.5,836.62,1.19183808]
[1766661065267,1.19524724,837.49,836.62,1.19183808]
[1766661065467,1.19524724,837.48,836.62,1.19183808]
[1766661065668,1.19524724,837.47,836.62,1.19183808]
[1766661065868,1.19524724,837.46,836.62,1.19183808]
[1766661066072,1.19524724,837.45,836.62,1.19183808]
[1766661066268,1.19524724,837.44,836.62,1.19183808]
[1766661066472,1.19524724,837.43,836.62,1.19183808]
[1766661066771,1.19524724,837.42,836.62,1.19183808]
[1766661066971,0.88848105,837.51,836.62,1.19183808]
[1766661067171,1.1952475,837.5,836.62,1.19183808]
[1766661067371,1.1952475,837.49,836.62,1.19183808]
[1766661070873,1.1952475,837.48,836.62,1.19183808]
[1766661071073,1.1952475,837.47,836.62,1.19183808]
[1766661071269,1.1952475,837.46,836.62,1.19183808]
[1766661071573,1.1952475,837.45,836.62,1.19183808]
[1766661071872,1.1952475,837.44,836.62,1.19183808]
[1766661072073,1.1952475,837.43,836.62,1.19183808]
[1766661072273,1.1952475,837.42,836.62,1.19183808]
[1766661072573,1.1952475,837.41,836.62,1.19183808]
[1766661072770,0.89184921,837.5,836.62,1.19183808]
[1766661072974,1.19524827,837.49,836.62,1.19183808]
[1766661073171,1.19524827,837.48,836.62,1.19183808]
[1766661073470,0.89184921,837.5,836.62,1.19183808]
[1766661073471,1.19524827,837.47,836.62,1.19183808]
[1766661073671,1.19524827,837.46,836.62,1.19183808]
[1766661073875,1.19524827,837.45,836.62,1.19183808]
[1766661074171,1.19524827,837.44,836.62,1.19183808]
[1766661074372,1.19524827,837.43,836.62,1.19183808]
[1766661074569,1.19524827,837.42,836.62,1.19183808]
[1766661074775,1.19524827,837.41,836.62,1.19183808]
[1766661074975,0.89184921,837.5,836.62,1.19183808]
[1766661075177,1.19524866,837.49,836.62,1.19183808]
[1766661075371,1.19524866,837.48,836.62,1.19183808]
[1766661075573,1.19524866,837.47,836.62,1.19183808]
[1766661075772,1.19524866,837.46,836.62,1.19183808]
[1766661075976,1.19524866,837.45,836.62,1.19183808]
[1766661076173,1.19524866,837.44,836.62,1.19183808]
[1766661076372,1.19524866,837.43,836.62,1.19183808]
[1766661076576,1.19524866,837.42,836.62,1.19183808]
[1766661076872,1.19524866,837.41,836.62,1.19183808]
[1766661077078,0.89184921,837.5,836.62,1.19183808]
[1766661077276,1.19524879,837.49,836.62,1.19183808]
[1766661077476,1.19524879,837.48,836.62,1.19183808]
[1766661077676,1.19524879,837.47,836.62,1.19183808]
[1766661077874,1.19524879,837.46,836.62,1.19183808]
[1766661078075,1.19524879,837.45,836.62,1.19183808]
[1766661078278,1.19524879,837.44,836.62,1.19183808]
[1766661078577,1.19524879,837.43,836.62,1.19183808]
[1766661078777,1.19524879,837.42,836.62,1.19183808]
[1766661078977,1.19524879,837.41,836.62,1.19183808]
[1766661079273,0.89184921,837.5,836.62,1.19183808]
[1766661079477,1.19524776,837.49,836.62,1.19183808]
[1766661079678,1.19524776,837.48,836.62,1.19183808]
[1766661079977,1.19524776,837.47,836.62,1.19183808]
[1766661080177,1.19524776,837.46,836.62,1.19183808]
[1766661080377,1.19524776,837.45,836.62,1.19183808]
[1766661080576,1.19524776,837.44,836.62,1.19183808]
[1766661080774,1.19524776,837.43,836.62,1.19183808]
[1766661080971,1.19524776,837.42,836.62,1.19183808]
[1766661081177,1.19524776,837.41,836.62,1.19183808]
[1766661081472,0.89184921,837.5,836.62,1.19183808]
[1766661081775,1.19524776,837.49,836.62,1.19183808]
[1766661081971,1.19524776,837.48,836.62,1.19183808]
[1766661082177,1.19524776,837.47,836.62,1.19183808]
[1766661082472,1.19524776,837.46,836.62,1.19183808]
[1766661082676,1.19524776,837.45,836.62,1.19183808]
[1766661082878,1.19524776,837.44,836.62,1.19183808]
[1766661083174,1.19524776,837.43,836.62,1.19183808]
[1766661083474,1.19524776,837.42,836.62,1.19183808]
[1766661083779,1.19524776,837.41,836.62,1.19183808]
[1766661083976,0.89184921,837.5,836.62,1.19183808]
[1766661084174,1.19524776,837.49,836.62,1.19183808]
[1766661084376,1.19524776,837.48,836.62,1.19183808]
[1766661084577,1.19524776,837.47,836.62,1.19183808]
[1766661084878,1.19524776,837.46,836.62,1.19183808]
[1766661085179,1.19524776,837.45,836.62,1.19183808]
[1766661085478,1.19524776,837.44,836.62,1.19183808]
[1766661085678,1.19524776,837.43,836.62,1.19183808]
[1766661085878,1.19524776,837.42,836.62,1.19183808]
[1766661086078,1.19524776,837.41,836.62,1.19183808]
[1766661086276,0.89184921,837.5,836.62,1.19183808]
[1766661086473,1.1952475,837.49,836.62,1.19183808]
[1766661086675,1.1952475,837.48,836.62,1.19183808]
[1766661086878,1.1952475,837.47,836.62,1.19183808]
[1766661087081,1.1952475,837.46,836.62,1.19183808]
[1766661087278,1.1952475,837.45,836.62,1.19183808]
[1766661087477,1.1952475,837.44,836.62,1.19183808]
[1766661087680,1.1952475,837.43,836.62,1.19183808]
[1766661087880,1.1952475,837.42,836.62,1.19183808]
[1766661088176,1.1952475,837.41,836.62,1.19183808]
[1766661088380,0.89184921,837.5,836.62,1.19183808]
[1766661088677,1.1952475,837.49,836.62,1.19183808]
[1766661088876,1.1952475,837.48,836.62,1.19183808]
[1766661089076,1.1952475,837.47,836.62,1.19183808]
[1766661089281,1.1952475,837.46,836.62,1.19183808]
[1766661089476,1.1952475,837.45,836.62,1.19183808]
[1766661089777,1.1952475,837.44,836.62,1.19183808]
[1766661089979,1.1952475,837.43,836.62,1.19183808]
[1766661090181,1.1952475,837.42,836.62,1.19183808]
[1766661090384,1.1952475,837.41,836.62,1.19183808]
[1766661090587,0.89184921,837.5,836.62,1.19183808]
[1766661090788,1.1952475,837.49,836.62,1.19183808]
[1766661091087,0.89184921,837.5,836.62,1.19183808]
[1766661091088,1.1952475,837.48,836.62,1.19183808]
[1766661091287,1.1952475,837.47,836.62,1.19183808]
[1766661091584,1.1952475,837.46,836.62,1.19183808]
[1766661091786,1.1952475,837.45,836.62,1.19183808]
[1766661091987,1.1952475,837.44,836.62,1.19183808]
[1766661092188,1.1952475,837.43,836.62,1.19183808]
[1766661092389,1.1952475,837.42,836.62,1.19183808]
[1766661092588,1.1952475,837.41,836.62,1.19183808]
[1766661092888,0.89184921,837.5,836.62,1.19183808]
[1766661093085,1.19524801,837.49,836.62,1.19183808]
[1766661093287,1.19524801,837.48,836.62,1.19183808]
[1766661093485,1.19524801,837.47,836.62,1.19183808]
[1766661093688,1.19524801,837.46,836.62,1.19183808]
[1766661093885,1.19524801,837.45,836.62,1.19183808]
[1766661094088,1.19524801,837.44,836.62,1.19183808]
[1766661094385,1.19524801,837.43,836.62,1.19183808]
[1766661094586,1.19524801,837.42,836.62,1.19183808]
[1766661094785,1.19524801,837.41,836.62,1.19183808]
[1766661094988,0.89184921,837.5,836.62,1.19183808]
[1766661095185,1.19524785,837.49,836.62,1.19183808]
[1766661095390,1.19524785,837.48,836.62,1.19183808]
[1766661095686,1.19524785,837.47,836.62,1.19183808]
[1766661095885,1.19524785,837.46,836.62,1.19183808]
[1766661096089,1.19524785,837.45,836.62,1.19183808]
[1766661096286,0.89184921,837.49,836.62,1.19183808]
[1766661096287,1.19524785,837.44,836.62,1.19183808]
[1766661096489,1.19524785,837.43,836.62,1.19183808]
[1766661096693,1.19524785,837.42,836.62,1.19183808]
[1766661096992,1.19524785,837.41,836.62,1.19183808]
[1766661097188,0.89184921,837.49,836.62,1.19183808]
[1766661097390,1.19524824,837.48,836.62,1.19183808]
[1766661097587,1.19524824,837.47,836.62,1.19183808]
[1766661097790,1.19524824,837.46,836.62,1.19183808]
[1766661097991,1.19524824,837.45,836.62,1.19183808]
[1766661098191,1.19524824,837.44,836.62,1.19183808]
[1766661098492,1.19524824,837.43,836.62,1.19183808]
[1766661098793,1.19524824,837.42,836.62,1.19183808]
[1766661098993,1.19524824,837.41,836.62,1.19183808]
[1766661099193,0.89184921,837.49,836.63,1.19183808]
[1766661099393,1.19524824,837.48,836.63,1.19183808]
[1766661099588,1.19524824,837.47,836.63,1.19183808]
[1766661099786,1.19524824,837.46,836.63,1.19183808]
[1766661099988,1.19524824,837.45,836.63,1.19183808]
[1766661100288,1.19524824,837.44,836.63,1.19183808]
[1766661100488,1.19524824,837.43,836.63,1.19183808]
[1766661100688,1.19524824,837.42,836.63,1.19183808]
[1766661100891,1.19524824,837.41,836.63,1.19183808]
[1766661101187,1.19524824,837.4,836.63,1.19183808]
[1766661101391,0.89184921,837.49,836.63,1.19183808]
[1766661101592,1.1952485,837.48,836.63,1.19183808]
[1766661101891,1.1952485,837.47,836.63,1.19183808]
[1766661102091,1.1952485,837.46,836.63,1.19183808]
[1766661102292,1.1952485,837.45,836.63,1.19183808]
[1766661102492,1.1952485,837.44,836.63,1.19183808]
[1766661102688,1.1952485,837.43,836.63,1.19183808]
[1766661102893,1.1952485,837.42,836.63,1.19183808]
[1766661103090,1.1952485,837.41,836.63,1.19183808]
[1766661103290,1.1952485,837.4,836.63,1.19183808]
[1766661103496,0.89184921,837.48,836.63,1.19183808]
[1766661103792,1.1952485,837.47,836.63,1.19183808]
[1766661103999,1.1952485,837.46,836.63,1.19183808]
[1766661104192,1.1952485,837.45,836.63,1.19183808]
[1766661104392,1.1952485,837.44,836.63,1.19183808]
[1766661104597,1.1952485,837.43,836.63,1.19183808]
[1766661104797,1.1952485,837.42,836.63,1.19183808]
[1766661104996,1.1952485,837.41,836.63,1.19183808]
[1766661105193,1.1952485,837.4,836.63,1.19183808]
[1766661105393,0.89184921,837.48,836.63,1.19183808]
[1766661105692,1.1952476,837.47,836.63,1.19183808]
[1766661105895,1.1952476,837.46,836.63,1.19183808]
[1766661106098,1.1952476,837.45,836.63,1.19183808]
[1766661106396,1.1952476,837.44,836.63,1.19183808]
[1766661106592,1.1952476,837.43,836.63,1.19183808]
[1766661106896,1.1952476,837.42,836.63,1.19183808]
[1766661107093,1.1952476,837.41,836.63,1.19183808]
[1766661107298,1.19524708,837.4,836.63,1.19183808]
[1766661107593,0.89184921,837.48,836.63,1.19183808]
[1766661107792,1.19524708,837.47,836.63,1.19183808]
[1766661107998,1.19524708,837.46,836.63,1.19183808]
[1766661108195,1.19524708,837.45,836.63,1.19183808]
[1766661108496,1.19524708,837.44,836.63,1.19183808]
[1766661108796,1.19524708,837.43,836.63,1.19183808]
[1766661109092,1.19524708,837.42,836.63,1.19183808]
[1766661109297,1.19524708,837.41,836.63,1.19183808]
[1766661109495,1.19524708,837.4,836.63,1.19183808]
[1766661109694,0.89184921,837.48,836.63,1.19183808]
[1766661109894,1.19524747,837.47,836.63,1.19183808]
[1766661110094,1.19524747,837.46,836.63,1.19183808]
[1766661110297,1.19524747,837.45,836.63,1.19183808]
[1766661110497,1.19524747,837.44,836.63,1.19183808]
[1766661110694,1.19524747,837.43,836.63,1.19183808]
[1766661110998,1.19524747,837.42,836.63,1.19183808]
[1766661111195,1.19524747,837.41,836.63,1.19183808]
[1766661111498,1.19524747,837.4,836.63,1.19183808]
[1766661111695,0.89184921,837.48,836.63,1.19183808]
[1766661111901,1.19524747,837.47,836.63,1.19183808]
[1766661112100,1.19524747,837.46,836.63,1.19183808]
[1766661112397,0.20783937,837.57,835.88,2.98109633]
[1766661112398,1.19524747,837.45,836.64,1.19183808]
[1766661112701,1.19524747,837.44,836.64,1.19183808]
[1766661112902,1.19524747,837.43,836.64,1.19183808]
[1766661113197,1.19524747,837.42,836.64,1.19183808]
[1766661113399,1.19524747,837.41,836.64,1.19183808]
[1766661113602,1.19524747,837.4,836.64,1.19183808]
[1766661113802,0.89184921,837.49,836.64,1.19183808]
[1766661114099,1.19524579,837.48,836.64,1.19183808]
[1766661114304,1.19524579,837.47,836.64,1.19183808]
[1766661114502,1.19524579,837.46,836.64,1.19183808]
[1766661114703,1.19524579,837.45,836.64,1.19183808]
[1766661114900,1.19524579,837.44,836.64,1.19183808]
[1766661115103,1.19524579,837.43,836.64,1.19183808]
[1766661115300,1.19524579,837.42,836.64,1.19183808]
[1766661115500,1.19524579,837.41,836.64,1.19183808]
[1766661115703,1.19524579,837.4,836.64,1.19183808]
[1766661115900,0.89184921,837.49,836.64,1.19183808]
[1766661116203,1.19524656,837.48,836.64,1.19183808]
[1766661116401,1.19524656,837.47,836.64,1.19183808]
[1766661116703,1.19524656,837.46,836.64,1.19183808]
[1766661116903,1.19524656,837.45,836.64,1.19183808]
[1766661117100,1.19524656,837.44,836.64,1.19183808]
[1766661117306,1.19524656,837.43,836.64,1.19183808]
[1766661117500,1.19524656,837.42,836.64,1.19183808]
[1766661117699,1.19524656,837.41,836.64,1.19183808]
[1766661118000,1.19524656,837.4,836.64,1.19183808]
[1766661118202,0.89184921,837.49,836.64,1.19183808]
[1766661118401,1.19524695,837.48,836.64,1.19183808]
[1766661118605,1.19524695,837.47,836.64,1.19183808]
[1766661118803,1.19524695,837.46,836.64,1.19183808]
[1766661119106,1.19524695,837.45,836.64,1.19183808]
[1766661119303,1.19524695,837.44,836.64,1.19183808]
[1766661119507,1.19524695,837.43,836.64,1.19183808]
[1766661119705,1.19524695,837.42,836.64,1.19183808]
[1766661120004,1.19524695,837.41,836.64,1.19183808]
[1766661120210,1.19524695,837.4,836.64,1.19183808]
[1766661120509,0.89184921,837.49,836.64,1.19183808]
[1766661120710,1.19524682,837.48,836.64,1.19183808]
[1766661120910,1.19524682,837.47,836.64,1.19183808]
[1766661121210,1.19524682,837.46,836.64,1.19183808]
[1766661121506,1.19524682,837.45,836.64,1.19183808]
[1766661121710,1.19524682,837.44,836.64,1.19183808]
[1766661122004,1.19524682,837.43,836.64,1.19183808]
[1766661122209,1.19524682,837.42,836.64,1.19183808]
[1766661122509,1.19524682,837.41,836.64,1.19183808]
[1766661122709,1.19524682,837.4,836.64,1.19183808]
[1766661122906,0.89184921,837.49,836.64,1.19183808]
[1766661123111,1.19524721,837.48,836.64,1.19183808]
[1766661123405,1.19524721,837.47,836.64,1.19183808]
[1766661123610,1.19524721,837.46,836.64,1.19183808]
[1766661123810,1.19524721,837.45,836.64,1.19183808]
[1766661124011,1.19524721,837.44,836.64,1.19183808]
[1766661124210,1.19524721,837.43,836.64,1.19183808]
[1766661124509,1.19524721,837.42,836.64,1.19183808]
[1766661124708,1.19524721,837.41,836.64,1.19183808]
[1766661124906,1.19524721,837.4,836.64,1.19183808]
[1766661125108,0.89184921,837.49,836.64,1.19183808]
[1766661125312,1.19524686,837.48,836.64,1.19183808]
[1766661125512,1.19524686,837.47,836.64,1.19183808]
[1766661125711,1.19524686,837.46,836.64,1.19183808]
[1766661125913,1.19524686,837.45,836.64,1.19183808]
[1766661126113,1.19524686,837.44,836.64,1.19183808]
[1766661126413,1.19524686,837.43,836.64,1.19183808]
[1766661126709,1.19524686,837.42,836.63,1.19183808]
[1766661126914,1.19524686,837.41,836.63,1.19183808]
[1766661127214,1.19524686,837.4,836.63,1.19183808]
[1766661127514,0.89221715,837.49,836.63,1.19183808]
[1766661127714,1.19524698,837.48,836.63,1.19183808]
[1766661128013,1.19524698,837.47,836.63,1.19183808]